[Event "January 9 Late 2024"]
[Site "https://www.chess.com"]
[Date "2024.01.09"]
[Round "3"]
[White "Sanchez Alvares, Kelvin Antonio"]
[Black "Harrington, Steve"]
[Result "0-1"]
[Board "226"]
[TimeControl "180+1"]
[WhiteFideId "3906680"]
[BlackFideId "2038730"]
[WhiteElo "2366"]
[BlackElo "2130"]
[WhiteTeam "VEN"]
[BlackTeam "USA"]
[WhiteClock "0:00:01"]
[BlackClock "0:00:33"]

1. e4 {[%clk 0:03:00]}  c5 {[%clk 0:02:58]} 2. Nf3 {[%clk 0:03:00]}  e6 {[%clk 0:02:58]} 3. d4 {[%clk 0:02:59]}  cxd4 {[%clk 0:02:59]} 4. Nxd4 {[%clk 0:02:59]}  Nf6 {[%clk 0:03:00]} 5. Nc3 {[%clk 0:02:53]}  Nc6 {[%clk 0:02:59]} 6. Nxc6 {[%clk 0:02:44]}  bxc6 {[%clk 0:02:59]} 7. e5 {[%clk 0:02:36]}  Nd5 {[%clk 0:02:59]} 8. Ne4 {[%clk 0:02:27]}  Qc7 {[%clk 0:02:59]} 9. f4 {[%clk 0:02:09]}  Qb6 {[%clk 0:02:59]} 10. c4 {[%clk 0:01:50]}  Ne3 {[%clk 0:02:59]} 11. Qd3 {[%clk 0:01:33]}  Nf5 {[%clk 0:02:58]} 12. g4 {[%clk 0:01:11]}  Nh4 {[%clk 0:02:57]} 13. Be3 {[%clk 0:01:06]}  Qa5+ {[%clk 0:02:22]} 14. Bd2 {[%clk 0:00:57]}  Qb6 {[%clk 0:02:21]} 15. b4 {[%clk 0:00:53]}  Bxb4 {[%clk 0:02:11]} 16. Bxb4 {[%clk 0:00:17]}  Qxb4+ {[%clk 0:02:12]} 17. Ke2 {[%clk 0:00:16]}  Qb2+ {[%clk 0:01:55]} 18. Nd2 {[%clk 0:00:13]}  Qxa1 {[%clk 0:01:49]} 19. Bg2 {[%clk 0:00:13]}  Qxa2 {[%clk 0:01:42]} 20. Be4 {[%clk 0:00:13]}  Ng6 {[%clk 0:01:27]} 21. Qd6 {[%clk 0:00:13]}  Nxf4+ {[%clk 0:01:10]} 22. Kf3 {[%clk 0:00:13]}  Ng6 {[%clk 0:00:54]} 23. Rf1 {[%clk 0:00:11]}  Qb2 {[%clk 0:00:43]} 24. c5 {[%clk 0:00:06]}  Qxe5 {[%clk 0:00:37]} 25. Qxe5 {[%clk 0:00:06]}  Nxe5+ {[%clk 0:00:37]} 26. Kf4 {[%clk 0:00:07]}  f6 {[%clk 0:00:36]} 27. g5 {[%clk 0:00:06]}  Kf7 {[%clk 0:00:34]} 28. gxf6 {[%clk 0:00:05]}  gxf6 {[%clk 0:00:35]} 29. Nf3 {[%clk 0:00:05]}  Nxf3 {[%clk 0:00:33]} 30. Rxf3 {[%clk 0:00:01]}  a5 {[%clk 0:00:33]} 0-1

[Event "January 9 Late 2024"]
[Site "https://www.chess.com"]
[Date "2024.01.09"]
[Round "3"]
[White "Van Baar, Esper"]
[Black "Luukkonen, Tommi"]
[Result "0-1"]
[Board "229"]
[TimeControl "180+1"]
[WhiteFideId "1049321"]
[BlackFideId "501808"]
[WhiteElo "2104"]
[BlackElo "2354"]
[WhiteTeam "NED"]
[BlackTeam "FIN"]
[WhiteClock "0:00:04"]
[BlackClock "0:01:25"]

1. d4 {[%clk 0:02:41]}  Nf6 {[%clk 0:02:57]} 2. Bf4 {[%clk 0:02:40]}  g6 {[%clk 0:02:56]} 3. Nf3 {[%clk 0:02:22]}  Bg7 {[%clk 0:02:56]} 4. e3 {[%clk 0:02:22]}  d6 {[%clk 0:02:55]} 5. h3 {[%clk 0:02:22]}  Nc6 {[%clk 0:02:54]} 6. c3 {[%clk 0:02:20]}  O-O {[%clk 0:02:55]} 7. Nbd2 {[%clk 0:02:17]}  Nd7 {[%clk 0:02:54]} 8. Bg3 {[%clk 0:02:12]}  e5 {[%clk 0:02:54]} 9. dxe5 {[%clk 0:02:09]}  Ndxe5 {[%clk 0:02:53]} 10. Nxe5 {[%clk 0:02:09]}  Nxe5 {[%clk 0:02:53]} 11. Nf3 {[%clk 0:02:07]}  Qe7 {[%clk 0:02:50]} 12. Be2 {[%clk 0:01:54]}  a5 {[%clk 0:02:41]} 13. a4 {[%clk 0:01:43]}  Nd7 {[%clk 0:02:41]} 14. O-O {[%clk 0:01:41]}  Nc5 {[%clk 0:02:40]} 15. Bc4 {[%clk 0:01:35]}  h6 {[%clk 0:02:36]} 16. Nd4 {[%clk 0:01:26]}  Ne4 {[%clk 0:02:36]} 17. Bh2 {[%clk 0:01:25]}  c6 {[%clk 0:02:35]} 18. Bd3 {[%clk 0:01:24]}  d5 {[%clk 0:02:27]} 19. Qc2 {[%clk 0:01:15]}  Re8 {[%clk 0:02:22]} 20. Bxe4 {[%clk 0:01:14]}  dxe4 {[%clk 0:02:22]} 21. Rfd1 {[%clk 0:01:10]}  Qg5 {[%clk 0:02:20]} 22. Kh1 {[%clk 0:01:10]}  Qc5 {[%clk 0:02:14]} 23. Nb3 {[%clk 0:00:58]}  Qb6 {[%clk 0:02:14]} 24. Nd2 {[%clk 0:00:57]}  Kh7 {[%clk 0:02:07]} 25. Nc4 {[%clk 0:00:57]}  Qa6 {[%clk 0:02:05]} 26. Nd6 {[%clk 0:00:57]}  Re7 {[%clk 0:02:03]} 27. Nxc8 {[%clk 0:00:56]}  Rxc8 {[%clk 0:02:03]} 28. Rd2 {[%clk 0:00:53]}  Qc4 {[%clk 0:02:00]} 29. b3 {[%clk 0:00:48]}  Qe6 {[%clk 0:01:55]} 30. Rad1 {[%clk 0:00:45]}  b5 {[%clk 0:01:46]} 31. Rd6 {[%clk 0:00:43]}  Qf5 {[%clk 0:01:46]} 32. axb5 {[%clk 0:00:38]}  cxb5 {[%clk 0:01:45]} 33. R1d5 {[%clk 0:00:38]}  Rxc3 {[%clk 0:01:41]} 34. Qxc3 {[%clk 0:00:16]}  Bxc3 {[%clk 0:01:39]} 35. Rxf5 {[%clk 0:00:15]}  gxf5 {[%clk 0:01:40]} 36. Rd5 {[%clk 0:00:12]}  a4 {[%clk 0:01:36]} 37. bxa4 {[%clk 0:00:11]}  bxa4 {[%clk 0:01:36]} 38. Bd6 {[%clk 0:00:07]}  Rd7 {[%clk 0:01:35]} 39. Rc5 {[%clk 0:00:07]}  Bb4 {[%clk 0:01:31]} 40. Rc7 {[%clk 0:00:04]}  Rxd6 {[%clk 0:01:25]} 0-1

[Event "January 9 Late 2024"]
[Site "https://www.chess.com"]
[Date "2024.01.09"]
[Round "3"]
[White "Winkels, Marcel"]
[Black "Melamed, Daniel"]
[Result "0-1"]
[Board "237"]
[TimeControl "180+1"]
[WhiteFideId "1003887"]
[BlackFideId "3229076"]
[WhiteElo "2001"]
[BlackElo "2336"]
[WhiteTeam "NED"]
[BlackTeam "AUS"]
[WhiteClock "0:00:00"]
[BlackClock "0:00:44"]

1. e4 {[%clk 0:03:00]}  c5 {[%clk 0:03:00]} 2. a3 {[%clk 0:02:59]}  g6 {[%clk 0:03:00]} 3. Nf3 {[%clk 0:02:56]}  Bg7 {[%clk 0:03:01]} 4. Bc4 {[%clk 0:02:55]}  Nc6 {[%clk 0:03:01]} 5. O-O {[%clk 0:02:50]}  d6 {[%clk 0:02:58]} 6. Nc3 {[%clk 0:02:44]}  Nf6 {[%clk 0:02:58]} 7. d3 {[%clk 0:02:43]}  Bg4 {[%clk 0:02:57]} 8. h3 {[%clk 0:02:41]}  Bxf3 {[%clk 0:02:56]} 9. Qxf3 {[%clk 0:02:40]}  Ne5 {[%clk 0:02:52]} 10. Qe2 {[%clk 0:02:39]}  Nxc4 {[%clk 0:02:53]} 11. dxc4 {[%clk 0:02:39]}  Nd7 {[%clk 0:02:46]} 12. f4 {[%clk 0:02:20]}  O-O {[%clk 0:02:47]} 13. Nd5 {[%clk 0:02:06]}  e6 {[%clk 0:02:45]} 14. Nc3 {[%clk 0:02:02]}  Bd4+ {[%clk 0:02:34]} 15. Be3 {[%clk 0:01:55]}  Bxc3 {[%clk 0:02:35]} 16. bxc3 {[%clk 0:01:55]}  Qa5 {[%clk 0:02:35]} 17. Bd2 {[%clk 0:01:43]}  Qa4 {[%clk 0:02:34]} 18. Be3 {[%clk 0:01:38]}  Nb6 {[%clk 0:02:32]} 19. f5 {[%clk 0:01:29]}  exf5 {[%clk 0:02:30]} 20. exf5 {[%clk 0:01:28]}  Qxc4 {[%clk 0:02:31]} 21. Qf2 {[%clk 0:00:57]}  f6 {[%clk 0:01:48]} 22. Rad1 {[%clk 0:00:47]}  Rad8 {[%clk 0:01:44]} 23. Bh6 {[%clk 0:00:37]}  Rf7 {[%clk 0:01:43]} 24. Rfe1 {[%clk 0:00:33]}  Qxc3 {[%clk 0:01:34]} 25. Rd3 {[%clk 0:00:26]}  Qc4 {[%clk 0:01:25]} 26. Rde3 {[%clk 0:00:17]}  Qa4 {[%clk 0:01:03]} 27. Kh1 {[%clk 0:00:07]}  Nc4 {[%clk 0:00:48]} 28. Re7 {[%clk 0:00:05]}  Ne5 {[%clk 0:00:45]} 29. Rxf7 {[%clk 0:00:03]}  Kxf7 {[%clk 0:00:46]} 30. fxg6+ {[%clk 0:00:01]}  hxg6 {[%clk 0:00:47]} 31. Bg5 {[%clk 0:00:00]}  f5 {[%clk 0:00:44]} 0-1

[Event "January 9 Late 2024"]
[Site "https://www.chess.com"]
[Date "2024.01.09"]
[Round "3"]
[White "Nicula, Marius"]
[Black "Zhukov, Maksim"]
[Result "1-0"]
[Board "238"]
[TimeControl "180+1"]
[WhiteFideId "1203096"]
[BlackFideId "34181790"]
[WhiteElo "2000"]
[BlackElo "2305"]
[WhiteTeam "CAN"]
[BlackTeam "RUS"]
[WhiteClock "0:00:12"]
[BlackClock "0:00:35"]

1. e4 {[%clk 0:02:52]}  c5 {[%clk 0:02:59]} 2. Nf3 {[%clk 0:02:51]}  e6 {[%clk 0:02:55]} 3. d4 {[%clk 0:02:50]}  cxd4 {[%clk 0:02:56]} 4. Nxd4 {[%clk 0:02:49]}  a6 {[%clk 0:02:56]} 5. Bd3 {[%clk 0:02:48]}  b5 {[%clk 0:02:57]} 6. O-O {[%clk 0:02:45]}  Bb7 {[%clk 0:02:57]} 7. Qe2 {[%clk 0:02:45]}  Bc5 {[%clk 0:02:57]} 8. Nb3 {[%clk 0:02:43]}  Bb6 {[%clk 0:02:52]} 9. Be3 {[%clk 0:02:43]}  d6 {[%clk 0:02:50]} 10. a4 {[%clk 0:02:38]}  Bxe3 {[%clk 0:02:47]} 11. Qxe3 {[%clk 0:02:37]}  b4 {[%clk 0:02:47]} 12. a5 {[%clk 0:02:30]}  Nf6 {[%clk 0:02:46]} 13. N1d2 {[%clk 0:02:29]}  O-O {[%clk 0:02:41]} 14. Nc4 {[%clk 0:02:15]}  Nc6 {[%clk 0:02:24]} 15. f4 {[%clk 0:02:01]}  d5 {[%clk 0:02:19]} 16. Nb6 {[%clk 0:01:54]}  dxe4 {[%clk 0:02:08]} 17. Nxa8 {[%clk 0:01:41]}  exd3 {[%clk 0:01:56]} 18. Nb6 {[%clk 0:01:40]}  dxc2 {[%clk 0:01:54]} 19. Rac1 {[%clk 0:01:30]}  Nd5 {[%clk 0:01:38]} 20. Nxd5 {[%clk 0:01:27]}  Qxd5 {[%clk 0:01:39]} 21. Rxc2 {[%clk 0:01:27]}  Nxa5 {[%clk 0:01:38]} 22. Nxa5 {[%clk 0:01:23]}  Qxa5 {[%clk 0:01:37]} 23. Qc5 {[%clk 0:01:07]}  Qxc5+ {[%clk 0:01:33]} 24. Rxc5 {[%clk 0:01:07]}  Rd8 {[%clk 0:01:25]} 25. Rc7 {[%clk 0:00:57]}  Be4 {[%clk 0:01:24]} 26. Rfc1 {[%clk 0:00:49]}  g6 {[%clk 0:01:16]} 27. Rc8 {[%clk 0:00:47]}  Rxc8 {[%clk 0:01:16]} 28. Rxc8+ {[%clk 0:00:47]}  Kg7 {[%clk 0:01:17]} 29. Rc4 {[%clk 0:00:29]}  Bd3 {[%clk 0:01:16]} 30. Rxb4 {[%clk 0:00:28]}  Kf6 {[%clk 0:01:16]} 31. Kf2 {[%clk 0:00:27]}  h5 {[%clk 0:01:13]} 32. Ke3 {[%clk 0:00:27]}  Bb5 {[%clk 0:01:13]} 33. Rd4 {[%clk 0:00:24]}  e5 {[%clk 0:01:13]} 34. fxe5+ {[%clk 0:00:23]}  Kxe5 {[%clk 0:01:13]} 35. Rd8 {[%clk 0:00:23]}  f5 {[%clk 0:01:11]} 36. g3 {[%clk 0:00:23]}  g5 {[%clk 0:01:10]} 37. Rh8 {[%clk 0:00:21]}  h4 {[%clk 0:00:50]} 38. gxh4 {[%clk 0:00:21]}  f4+ {[%clk 0:00:50]} 39. Kf2 {[%clk 0:00:20]}  g4 {[%clk 0:00:49]} 40. Rg8 {[%clk 0:00:19]}  Bd7 {[%clk 0:00:46]} 41. h5 {[%clk 0:00:18]}  Be6 {[%clk 0:00:44]} 42. Rg7 {[%clk 0:00:16]}  Kf6 {[%clk 0:00:44]} 43. h6 {[%clk 0:00:17]}  Bf5 {[%clk 0:00:37]} 44. Ra7 {[%clk 0:00:15]}  a5 {[%clk 0:00:30]} 45. h7 {[%clk 0:00:15]}  Bxh7 {[%clk 0:00:30]} 46. Rxh7 {[%clk 0:00:15]}  Ke5 {[%clk 0:00:30]} 47. Ra7 {[%clk 0:00:15]}  Kd4 {[%clk 0:00:29]} 48. Rxa5 {[%clk 0:00:15]}  Kd3 {[%clk 0:00:30]} 49. Ra4 {[%clk 0:00:15]}  g3+ {[%clk 0:00:30]} 50. hxg3 {[%clk 0:00:15]}  fxg3+ {[%clk 0:00:31]} 51. Kxg3 {[%clk 0:00:15]}  Kc2 {[%clk 0:00:29]} 52. Rb4 {[%clk 0:00:15]}  Kd3 {[%clk 0:00:29]} 53. Kf4 {[%clk 0:00:15]}  Kc2 {[%clk 0:00:29]} 54. Ke3 {[%clk 0:00:15]}  Kb1 {[%clk 0:00:30]} 55. b3 {[%clk 0:00:14]}  Ka2 {[%clk 0:00:31]} 56. Rh4 {[%clk 0:00:13]}  Ka3 {[%clk 0:00:32]} 57. Kd3 {[%clk 0:00:13]}  Kb2 {[%clk 0:00:31]} 58. b4 {[%clk 0:00:13]}  Ka3 {[%clk 0:00:32]} 59. b5 {[%clk 0:00:13]}  Kb3 {[%clk 0:00:33]} 60. b6 {[%clk 0:00:13]}  Ka2 {[%clk 0:00:33]} 61. b7 {[%clk 0:00:13]}  Kb2 {[%clk 0:00:34]} 62. b8=Q+ {[%clk 0:00:12]}  Kc1 {[%clk 0:00:35]} 63. Rh1# {[%clk 0:00:12]} 1-0

[Event "January 9 Late 2024"]
[Site "https://www.chess.com"]
[Date "2024.01.09"]
[Round "3"]
[White "Szente Varga, Fruzsina"]
[Black "Smirnov, Timofey"]
[Result "1-0"]
[Board "239"]
[TimeControl "180+1"]
[WhiteFideId "712264"]
[BlackFideId "24176427"]
[WhiteElo "2302"]
[BlackElo "1990"]
[WhiteTeam "HUN"]
[BlackTeam "RUS"]
[WhiteClock "0:01:30"]
[BlackClock "0:00:38"]

1. e4 {[%clk 0:02:43]}  e5 {[%clk 0:02:57]} 2. d4 {[%clk 0:02:40]}  exd4 {[%clk 0:02:57]} 3. Qxd4 {[%clk 0:02:41]}  Nc6 {[%clk 0:02:55]} 4. Qe3 {[%clk 0:02:42]}  g6 {[%clk 0:02:39]} 5. Nc3 {[%clk 0:02:40]}  Bg7 {[%clk 0:02:38]} 6. Bd2 {[%clk 0:02:41]}  Nge7 {[%clk 0:02:38]} 7. h4 {[%clk 0:02:40]}  d6 {[%clk 0:02:30]} 8. h5 {[%clk 0:02:40]}  Be6 {[%clk 0:02:17]} 9. O-O-O {[%clk 0:02:40]}  Qd7 {[%clk 0:02:16]} 10. h6 {[%clk 0:02:29]}  Bxc3 {[%clk 0:02:16]} 11. Bxc3 {[%clk 0:02:29]}  Rg8 {[%clk 0:01:57]} 12. Bb5 {[%clk 0:02:29]}  a6 {[%clk 0:01:55]} 13. Ba4 {[%clk 0:02:26]}  b5 {[%clk 0:01:48]} 14. Bb3 {[%clk 0:02:26]}  Bxb3 {[%clk 0:01:48]} 15. cxb3 {[%clk 0:02:17]}  Qe6 {[%clk 0:01:43]} 16. Kb1 {[%clk 0:01:58]}  Ne5 {[%clk 0:01:43]} 17. f4 {[%clk 0:01:53]}  N5c6 {[%clk 0:01:38]} 18. Nf3 {[%clk 0:01:47]}  O-O-O {[%clk 0:01:29]} 19. Ng5 {[%clk 0:01:42]}  Qg4 {[%clk 0:01:18]} 20. Nxh7 {[%clk 0:01:36]}  Qe6 {[%clk 0:00:38]} 21. Ng5 {[%clk 0:01:30]} 1-0

[Event "January 9 Late 2024"]
[Site "https://www.chess.com"]
[Date "2024.01.09"]
[Round "4"]
[White "Nakamura, Hikaru"]
[Black "Anton Guijarro, David"]
[Result "1-0"]
[Board "1"]
[TimeControl "180+1"]
[WhiteFideId "2016192"]
[BlackFideId "2285525"]
[WhiteElo "3207"]
[BlackElo "2977"]
[WhiteTeam "USA"]
[BlackTeam "ESP"]
[WhiteClock "0:00:08"]
[BlackClock "0:00:04"]

1. g3 {[%clk 0:03:00]}  d5 {[%clk 0:02:59]} 2. Nf3 {[%clk 0:03:00]}  e6 {[%clk 0:02:55]} 3. Bg2 {[%clk 0:03:00]}  b5 {[%clk 0:02:55]} 4. O-O {[%clk 0:02:58]}  Nf6 {[%clk 0:02:55]} 5. d3 {[%clk 0:02:59]}  Be7 {[%clk 0:02:55]} 6. Nbd2 {[%clk 0:02:57]}  O-O {[%clk 0:02:53]} 7. e4 {[%clk 0:02:58]}  h6 {[%clk 0:02:53]} 8. e5 {[%clk 0:02:46]}  Nfd7 {[%clk 0:02:50]} 9. Re1 {[%clk 0:02:47]}  c5 {[%clk 0:02:50]} 10. Nf1 {[%clk 0:02:41]}  a5 {[%clk 0:02:48]} 11. h4 {[%clk 0:02:42]}  a4 {[%clk 0:02:47]} 12. a3 {[%clk 0:02:42]}  Re8 {[%clk 0:02:44]} 13. c3 {[%clk 0:02:34]}  Nc6 {[%clk 0:02:41]} 14. N1h2 {[%clk 0:02:33]}  Nf8 {[%clk 0:02:37]} 15. Ng4 {[%clk 0:02:26]}  Nh7 {[%clk 0:02:35]} 16. Bf4 {[%clk 0:02:22]}  Bb7 {[%clk 0:02:31]} 17. d4 {[%clk 0:02:21]}  Na5 {[%clk 0:01:59]} 18. Bf1 {[%clk 0:02:21]}  Nc4 {[%clk 0:01:53]} 19. Bd3 {[%clk 0:02:19]}  Nf8 {[%clk 0:01:36]} 20. Qe2 {[%clk 0:01:57]}  cxd4 {[%clk 0:01:33]} 21. Nxd4 {[%clk 0:01:57]}  f5 {[%clk 0:01:22]} 22. exf6 {[%clk 0:00:55]}  Bxf6 {[%clk 0:01:22]} 23. Be5 {[%clk 0:00:53]}  Bxe5 {[%clk 0:00:45]} 24. Nxe5 {[%clk 0:00:54]}  Nd7 {[%clk 0:00:32]} 25. Bxc4 {[%clk 0:00:23]}  dxc4 {[%clk 0:00:27]} 26. Rad1 {[%clk 0:00:22]}  Nxe5 {[%clk 0:00:14]} 27. Qxe5 {[%clk 0:00:22]}  Qb6 {[%clk 0:00:10]} 28. Qxb5 {[%clk 0:00:20]}  Qc7 {[%clk 0:00:10]} 29. Rxe6 {[%clk 0:00:17]}  Qf7 {[%clk 0:00:09]} 30. Qe5 {[%clk 0:00:12]}  Rf8 {[%clk 0:00:09]} 31. f4 {[%clk 0:00:12]}  Kh8 {[%clk 0:00:07]} 32. Re7 {[%clk 0:00:12]}  Qg6 {[%clk 0:00:07]} 33. Kh2 {[%clk 0:00:10]}  Rae8 {[%clk 0:00:07]} 34. Re1 {[%clk 0:00:06]}  Rxe7 {[%clk 0:00:05]} 35. Qxe7 {[%clk 0:00:07]}  Rf7 {[%clk 0:00:06]} 36. Qd8+ {[%clk 0:00:03]}  Kh7 {[%clk 0:00:06]} 37. Re8 {[%clk 0:00:04]}  Qb1 {[%clk 0:00:03]} 38. Rh8+ {[%clk 0:00:05]}  Kg6 {[%clk 0:00:03]} 39. h5+ {[%clk 0:00:05]}  Kxh5 {[%clk 0:00:03]} 40. Qh4+ {[%clk 0:00:06]}  Kg6 {[%clk 0:00:03]} 41. Qg4+ {[%clk 0:00:07]}  Kf6 {[%clk 0:00:04]} 42. Qe6# {[%clk 0:00:08]} 1-0

[Event "January 9 Late 2024"]
[Site "https://www.chess.com"]
[Date "2024.01.09"]
[Round "4"]
[White "Aronian, Levon"]
[Black "Daneshvar, Bardiya"]
[Result "1-0"]
[Board "5"]
[TimeControl "180+1"]
[WhiteFideId "13300474"]
[BlackFideId "12576468"]
[WhiteElo "3107"]
[BlackElo "2943"]
[WhiteTeam "USA"]
[BlackTeam "IRI"]
[WhiteClock "0:01:13"]
[BlackClock "0:00:56"]

1. e4 {[%clk 0:03:00]}  c5 {[%clk 0:03:00]} 2. Nf3 {[%clk 0:03:01]}  g6 {[%clk 0:03:00]} 3. c4 {[%clk 0:03:00]}  Nc6 {[%clk 0:03:01]} 4. d4 {[%clk 0:03:00]}  cxd4 {[%clk 0:03:02]} 5. Nxd4 {[%clk 0:03:01]}  Bg7 {[%clk 0:03:01]} 6. Nc2 {[%clk 0:03:01]}  d6 {[%clk 0:03:00]} 7. Be2 {[%clk 0:03:01]}  Be6 {[%clk 0:03:00]} 8. O-O {[%clk 0:02:59]}  Rc8 {[%clk 0:03:01]} 9. Nd2 {[%clk 0:02:56]}  Nf6 {[%clk 0:03:00]} 10. b3 {[%clk 0:02:54]}  O-O {[%clk 0:02:49]} 11. Bb2 {[%clk 0:02:51]}  a5 {[%clk 0:02:50]} 12. Ne3 {[%clk 0:02:47]}  a4 {[%clk 0:02:49]} 13. Qc1 {[%clk 0:02:39]}  b5 {[%clk 0:02:26]} 14. cxb5 {[%clk 0:02:32]}  Nd4 {[%clk 0:02:24]} 15. Qd1 {[%clk 0:02:31]}  Nxe2+ {[%clk 0:02:24]} 16. Qxe2 {[%clk 0:02:31]}  axb3 {[%clk 0:02:24]} 17. axb3 {[%clk 0:02:31]}  Qb6 {[%clk 0:02:25]} 18. Ra6 {[%clk 0:02:22]}  Qb7 {[%clk 0:02:21]} 19. Rfa1 {[%clk 0:02:21]}  Ra8 {[%clk 0:02:14]} 20. f3 {[%clk 0:02:07]}  Nd7 {[%clk 0:02:12]} 21. Bxg7 {[%clk 0:01:59]}  Kxg7 {[%clk 0:02:13]} 22. Ndc4 {[%clk 0:01:58]}  Rxa6 {[%clk 0:01:56]} 23. Qb2+ {[%clk 0:01:57]}  f6 {[%clk 0:01:54]} 24. bxa6 {[%clk 0:01:56]}  Qa7 {[%clk 0:01:54]} 25. Qf2 {[%clk 0:01:50]}  Ra8 {[%clk 0:01:46]} 26. Nd5 {[%clk 0:01:47]}  Qb8 {[%clk 0:01:13]} 27. Ncb6 {[%clk 0:01:30]}  Nxb6 {[%clk 0:01:03]} 28. Qxb6 {[%clk 0:01:26]}  Qc8 {[%clk 0:00:56]} 29. Qc7 {[%clk 0:01:13]} 1-0

[Event "January 9 Late 2024"]
[Site "https://www.chess.com"]
[Date "2024.01.09"]
[Round "4"]
[White "Matlakov, Maxim"]
[Black "Andreikin, Dmitry"]
[Result "0-1"]
[Board "6"]
[TimeControl "180+1"]
[WhiteFideId "4168003"]
[BlackFideId "4158814"]
[WhiteElo "2933"]
[BlackElo "3097"]
[WhiteTeam "RUS"]
[BlackTeam "FID"]
[WhiteClock "0:00:01"]
[BlackClock "0:00:06"]

1. d4 {[%clk 0:02:55]}  g6 {[%clk 0:02:57]} 2. e4 {[%clk 0:02:55]}  Bg7 {[%clk 0:02:57]} 3. Nf3 {[%clk 0:02:55]}  d6 {[%clk 0:02:56]} 4. Bc4 {[%clk 0:02:54]}  Nf6 {[%clk 0:02:55]} 5. Qe2 {[%clk 0:02:54]}  c6 {[%clk 0:02:49]} 6. e5 {[%clk 0:02:51]}  Nd5 {[%clk 0:02:38]} 7. h3 {[%clk 0:02:49]}  O-O {[%clk 0:02:33]} 8. O-O {[%clk 0:02:49]}  b5 {[%clk 0:02:30]} 9. Bb3 {[%clk 0:02:48]}  a5 {[%clk 0:02:27]} 10. a4 {[%clk 0:02:44]}  bxa4 {[%clk 0:02:22]} 11. Bc4 {[%clk 0:02:27]}  Nd7 {[%clk 0:02:10]} 12. c3 {[%clk 0:02:01]}  dxe5 {[%clk 0:02:02]} 13. dxe5 {[%clk 0:01:54]}  Nc5 {[%clk 0:02:02]} 14. Rd1 {[%clk 0:01:47]}  Qb6 {[%clk 0:01:40]} 15. Nd4 {[%clk 0:01:46]}  Ba6 {[%clk 0:01:22]} 16. Nd2 {[%clk 0:01:37]}  Bxc4 {[%clk 0:01:07]} 17. Nxc4 {[%clk 0:01:37]}  Qa6 {[%clk 0:01:08]} 18. Kf1 {[%clk 0:01:32]}  Rfd8 {[%clk 0:00:58]} 19. Re1 {[%clk 0:01:13]}  Rab8 {[%clk 0:00:47]} 20. Nd2 {[%clk 0:00:57]}  Nd3 {[%clk 0:00:38]} 21. g3 {[%clk 0:00:51]}  Ra8 {[%clk 0:00:32]} 22. N2f3 {[%clk 0:00:36]}  Nxe1 {[%clk 0:00:30]} 23. Qxa6 {[%clk 0:00:37]}  Rxa6 {[%clk 0:00:30]} 24. Kxe1 {[%clk 0:00:38]}  c5 {[%clk 0:00:27]} 25. Nb5 {[%clk 0:00:30]}  Rb8 {[%clk 0:00:23]} 26. Na3 {[%clk 0:00:26]}  Nb6 {[%clk 0:00:20]} 27. Ke2 {[%clk 0:00:26]}  e6 {[%clk 0:00:20]} 28. Be3 {[%clk 0:00:24]}  Bf8 {[%clk 0:00:17]} 29. Nd2 {[%clk 0:00:23]}  Be7 {[%clk 0:00:15]} 30. Nac4 {[%clk 0:00:23]}  Nd5 {[%clk 0:00:11]} 31. Kd3 {[%clk 0:00:21]}  Rd8 {[%clk 0:00:10]} 32. Kc2 {[%clk 0:00:21]}  Nxe3+ {[%clk 0:00:10]} 33. Nxe3 {[%clk 0:00:22]}  Bg5 {[%clk 0:00:10]} 34. f4 {[%clk 0:00:22]}  Be7 {[%clk 0:00:08]} 35. Rxa4 {[%clk 0:00:22]}  Kf8 {[%clk 0:00:08]} 36. Nec4 {[%clk 0:00:20]}  h5 {[%clk 0:00:07]} 37. h4 {[%clk 0:00:20]}  Ke8 {[%clk 0:00:07]} 38. Ne4 {[%clk 0:00:20]}  Rda8 {[%clk 0:00:06]} 39. Ncd2 {[%clk 0:00:11]}  Kd7 {[%clk 0:00:05]} 40. Nc4 {[%clk 0:00:08]}  Kc6 {[%clk 0:00:05]} 41. Kd3 {[%clk 0:00:09]}  Kb5 {[%clk 0:00:05]} 42. b3 {[%clk 0:00:09]}  Rd8+ {[%clk 0:00:05]} 43. Kc2 {[%clk 0:00:10]}  Rd5 {[%clk 0:00:05]} 44. Na3+ {[%clk 0:00:10]}  Kc6 {[%clk 0:00:05]} 45. Nc4 {[%clk 0:00:10]}  Rd8 {[%clk 0:00:04]} 46. Ne3 {[%clk 0:00:09]}  Rda8 {[%clk 0:00:03]} 47. Nc4 {[%clk 0:00:09]}  R8a7 {[%clk 0:00:04]} 48. Ne3 {[%clk 0:00:09]}  Kb5 {[%clk 0:00:04]} 49. Nc4 {[%clk 0:00:10]}  Rd7 {[%clk 0:00:05]} 50. Ne3 {[%clk 0:00:10]}  Kc6 {[%clk 0:00:05]} 51. Nc4 {[%clk 0:00:10]}  Bd8 {[%clk 0:00:05]} 52. Ne3 {[%clk 0:00:09]}  Bc7 {[%clk 0:00:05]} 53. Nc4 {[%clk 0:00:10]}  Ra8 {[%clk 0:00:06]} 54. Ng5 {[%clk 0:00:09]}  Rad8 {[%clk 0:00:06]} 55. Ne4 {[%clk 0:00:09]}  Rd1 {[%clk 0:00:06]} 56. Ncd6 {[%clk 0:00:06]}  Re1 {[%clk 0:00:06]} 57. Nxf7 {[%clk 0:00:05]}  Re2+ {[%clk 0:00:06]} 58. Kc1 {[%clk 0:00:05]}  Rd3 {[%clk 0:00:06]} 59. Nfg5 {[%clk 0:00:04]}  Rde3 {[%clk 0:00:06]} 60. Kd1 {[%clk 0:00:03]}  Rb2 {[%clk 0:00:06]} 61. Kc1 {[%clk 0:00:03]}  Rh2 {[%clk 0:00:05]} 62. Kd1 {[%clk 0:00:03]}  Ree2 {[%clk 0:00:06]} 63. Rc4 {[%clk 0:00:03]}  Ra2 {[%clk 0:00:06]} 64. Kc1 {[%clk 0:00:01]}  Ra1# {[%clk 0:00:06]} 0-1